Cogmind - Beta 12 @@@ ROGUE MODE // 2023.05.04 @ 10:34:11 Player: Beepinex Result: Self-destructed Performance ------------- Evolutions (2) 1000 Regions Visited (5) 1000 Robots Destroyed (55) 275 Value Destroyed (1170) 1170 Prototype IDs (29) 580 Alien Tech Used (0) 0 Bonus (258) 258 TOTAL SCORE: 4283 Bonus ------- Aligned with FarCom 300 Friendly Fire -42 Cogmind --------- Core Integrity 358/550 Matter 263/300 Energy 240/240 System Corruption 2% Temperature Cool (0) Movement Treading (166) Location -8/Materials Parts ------- > --- POWER (1) -------- Nuclear Core > --- PROPULSION (3) --- Light Treads Armored Treads Armored Treads > --- UTILITY (5) ------ Medium Storage Unit Weight Redist. System Improved Sensor Array Improved Signal Interpreter System Shield > --- WEAPON (2) ------- Enhanced Autogun Enhanced Autogun > --- INVENTORY (10) --- Light Ion Engine High-capacity Battery (250) Medium Matter Pod (100) Hacking Suite Trap Reconfigurator Enhanced Autogun Enhanced Autogun Grenade Launcher Rocket Launcher Improved Datajack Peak State ------------ > --- POWER ------------ Nuclear Core > --- PROPULSION ------- Light Treads Armored Treads Armored Treads > --- UTILITY ---------- Medium Storage Unit Weight Redist. System Improved Signal Interpreter System Shield Trap Reconfigurator > --- WEAPON ----------- Enhanced Autogun Enhanced Autogun > --- INVENTORY -------- Light Ion Engine High-capacity Battery Medium Matter Pod Improved Sensor Array Hacking Suite Enhanced Autogun Enhanced Autogun Grenade Launcher Rocket Launcher Improved Datajack [Rating: 38] Favorites ----------- Power Nuclear Core Engine Ion Engine Power Core Nuclear Core Propulsion Compact Wheel Treads Light Treads Leg Carbon-fiber Leg Wheel Compact Wheel Utility Medium Storage Unit Device Seismic Detector Storage Medium Storage Unit Processor Improved Signal Interpreter Hackware System Shield Weapon Light Assault Rifle Energy Gun Small Laser Ballistic Gun Light Assault Rifle Launcher Grenade Launcher Build | -11 -10 -10 -10 -9 -8 ------- Run | Jun Mat Min Exi Min Mat Slots Evolved 4 | . . . . . 4 Power . | . . . . . . Propulsion 1 | . . . . . 1 Utility 3 | . . . . . 3 Weapon . | . . . . . . Parts Attached 50 | 7 5 6 2 1 29 Power 4 | 1 1 . 1 . 1 Engine 3 | 1 1 . 1 . . Core 1 | . . . . . 1 Reactor . | . . . . . . Propulsion 11 | 2 1 1 1 . 6 Treads 6 | 1 1 . 1 . 3 Leg 1 | . . . . . 1 Wheel 4 | 1 . 1 . . 2 Hover . | . . . . . . Flight . | . . . . . . Utility 18 | 2 1 . . . 15 Device 12 | 1 . . . . 11 Storage 3 | 1 1 . . . 1 Processor 2 | . . . . . 2 Hackware 1 | . . . . . 1 Protection . | . . . . . . Artifact . | . . . . . . Weapon 17 | 2 2 5 . 1 7 Energy Gun 6 | 1 1 2 . 1 1 Energy Cannon . | . . . . . . Ballistic Gun 8 | 1 . 2 . . 5 Ballistic Cannon . | . . . . . . Launcher 3 | . 1 1 . . 1 Special Weapon . | . . . . . . Impact Weapon . | . . . . . . Slashing Weapon . | . . . . . . Piercing Weapon . | . . . . . . Special Melee Weapon . | . . . . . . Unidentified Prototypes 1 | . . . . . 1 Parts Lost 6 | . 1 3 . . 2 Power . | . . . . . . Propulsion 2 | . . 1 . . 1 Utility . | . . . . . . Weapon 4 | . 1 2 . . 1 Highest Loss Streak 3 | . 1 3 . . 1 To Critical Strikes . | . . . . . . Average Slot Usage (%) 94 | . 100 99 100 100 87 Engine 7 | . 14 14 14 14 . Core 4 | . . . . . 8 Treads 12 | . 14 14 14 14 10 Wheel 11 | . 14 14 14 14 8 Device 18 | . 14 14 14 14 23 Storage 11 | . 14 14 14 14 9 Processor 1 | . . . . . 2 Hackware 2 | . . . . . 5 Energy Gun 4 | . 13 1 . 6 2 Ballistic Gun 18 | . 14 25 28 21 15 Naked Turns . | . . . . . . Heaviest Build 27 | 14 21 21 16 16 27 Greatest Support 66 | 16 16 16 16 16 66 Greatest Overweight (x) 1 | . 1 1 . . 1 Average Overweight (x) . | . . 1 . . . Largest Inventory Capacity 10 | 8 10 10 10 10 10 Average Capacity 9 | 6 9 10 10 10 10 Most Carried 10 | 7 10 10 10 10 10 Average Carried 9 | 3 8 9 8 9 9 Final Capacity 10 | 8 10 10 10 10 10 Final Carried 10 | 6 10 10 9 10 10 Class Distribution -------------------- 79% | Mutant 9% | Scavenger-Mutant 8% | Skirmisher Dominant Class ---------------- Mutant | -10/Materials Mutant | -10/Mines Scavenger-Mutant | -10/Exiles Mutant | -9/Mines Mutant | -8/Materials Resources | -11 -10 -10 -10 -9 -8 ----------- Run | Jun Mat Min Exi Min Mat Matter Collected 1568 | 285 204 190 . 22 867 Remotely . | . . . . . . Salvage Created 2010 | 150 498 123 . . 1239 Parts 125 | 13 35 14 . . 63 Haulers Intercepted 5 | . 1 . . . 4 Recyclers Shooed 3 | . 1 . . . 2 Parts Field Recycled . | . . . . . . Retrieved Matter . | . . . . . . Parts Self-Destructed . | . . . . . . Prevented . | . . . . . . Kills | -11 -10 -10 -10 -9 -8 ------- Run | Jun Mat Min Exi Min Mat Combat Hostiles Destroyed 45 | . 11 21 . . 13 Guns 29 | . 8 8 . . 13 AOE 16 | . 3 13 . . . Classes Destroyed 14 | 2 5 2 . . 5 Worker 2 | . . . . . 2 Builder 3 | . 2 . . . 1 Tunneler 4 | 3 1 . . . . Hauler 5 | . 1 . . . 4 Recycler 5 | 1 2 . . . 2 Watcher 5 | . 1 . . . 4 Swarmer 12 | . 6 6 . . . Grunt 12 | . 5 . . . 7 Brawler 2 | . . . . . 2 Duelist 1 | . . . . . 1 Sentry 2 | . . . . . 2 Demolisher 1 | . . 1 . . . Hunter 1 | . . . . . 1 Assembled 14 | . . 14 . . . Best Kill Streak 20 | 3 6 20 . . 5 Combat Bots Only 17 | . 3 17 . . 4 Max Kills in Single Turn 5 | 1 2 5 . . 1 Gunslinging 1 | . 1 1 . . . Exploded 5 | . 2 5 . . . Melee . | . . . . . . Uniques/NPCs Destroyed . | . . . . . . Combat | -11 -10 -10 -10 -9 -8 -------- Run | Jun Mat Min Exi Min Mat Damage Taken 1700 | . 294 565 . . 841 Core 361 | . 25 144 . . 192 Absorbed by Shields . | . . . . . . Core Remaining (%) 66 | 100 . . . 32 . Volleys Fired 159 | 5 32 28 . 1 93 Largest 2 | 2 2 2 . 2 2 Hottest 85 | 60 85 85 . 40 85 Shots Fired 295 | 10 59 39 . 2 185 Gun 286 | 10 55 35 . 2 184 Cannon . | . . . . . . Launcher 9 | . 4 4 . . 1 Special . | . . . . . . Kinetic 234 | 5 28 29 . 2 170 Thermal 52 | 5 27 6 . . 14 Explosive 9 | . 4 4 . . 1 Electromagnetic . | . . . . . . Robot Hit Streak 18 | 3 18 7 . . 10 Robot Miss Streak 5 | 3 3 4 . . 5 Penetration Max . | . . . . . . Secondary Targets 3 | . 1 1 . . 1 Max Gunslinging Chain 1 | . 1 1 . . 1 Shots Hit Robots 178 | 5 37 21 . . 115 Core Hits 121 | 5 24 43 . . 49 Critical Kills 1 | . . . . . 1 Critical Parts Destroyed . | . . . . . . Critical Strikes 1 | . . . . . 1 Destroy 1 | . . . . . 1 Melee Attacks . | . . . . . . Impact . | . . . . . . Slashing . | . . . . . . Piercing . | . . . . . . Sneak Attacks . | . . . . . . Combat Hostiles . | . . . . . . Follow-up Attacks . | . . . . . . Damage Inflicted 3819 | 64 780 1063 . . 1912 Guns 2646 | 64 469 227 . . 1886 Cannons . | . . . . . . Explosions 1139 | . 303 836 . . . Melee . | . . . . . . Ramming 34 | . 8 . . . 26 Kinetic 2217 | 41 246 161 . . 1769 Thermal 493 | 23 287 66 . . 117 Explosive 1075 | . 239 836 . . . Electromagnetic . | . . . . . . Impact . | . . . . . . Slashing . | . . . . . . Piercing . | . . . . . . Highest Corruption 2 | . . . . . 2 Average Corruption 2 | . . . . . 2 Corruption Purged . | . . . . . . Corruption Blocked . | . . . . . . Overload Shots . | . . . . . . Overflow Damage 38 | . 37 1 . . . Projectiles . | . . . . . . Explosions 38 | . 37 1 . . . Melee . | . . . . . . Knockbacks . | . . . . . . Impact . | . . . . . . Kinetic . | . . . . . . Secondary . | . . . . . . Self-Inflicted Damage 106 | . 94 . . . 12 Shots 2 | . 2 . . . . Rammed 3 | . 1 . . . 2 Targets Rammed 3 | . 1 . . . 2 Kicked . | . . . . . . Crushed . | . . . . . . Highest Temperature 120 | . 72 120 . . 62 Average Temperature 20 | . 31 56 . . 12 Received Heat Transfer 474 | . 105 . . . 369 Siege Activations . | . . . . . . Robots Corrupted . | . . . . . . Combat Hostiles . | . . . . . . Parts Fried 9 | . . . . . 9 Impact Corruptions . | . . . . . . Robots Melted . | . . . . . . Combat Hostiles . | . . . . . . Parts Melted 2 | . 2 . . . . Heat Transferred 1031 | 50 571 148 . . 262 Parts Sabotaged . | . . . . . . Parts Stolen . | . . . . . . Parts Stripped . | . . . . . . Power Chain Reactions . | . . . . . . Missiles Intercepted . | . . . . . . Alert | -11 -10 -10 -10 -9 -8 ------- Run | Jun Mat Min Exi Min Mat Peak Influence 335 | 20 335 177 . . 326 Initial 96 | . 13 96 . . . Average 110 | 8 147 125 . . 102 Maximum Alert Level 1 | . 1 . . . 1 Low Security (%) 91 | 100 71 100 . 100 95 Level 1 8 | . 28 . . . 4 Level 2 . | . . . . . . Level 3 . | . . . . . . Level 4 . | . . . . . . Level 5 . | . . . . . . High Security . | . . . . . . Max Security . | . . . . . . Squads Dispatched 1 | . 1 . . . . Investigation . | . . . . . . Extermination . | . . . . . . Reinforcement 1 | . 1 . . . . Assault . | . . . . . . Garrison . | . . . . . . Intercept . | . . . . . . Searches Triggered . | . . . . . . Construction Impeded . | . . . . . . Haulers Reinforced . | . . . . . . Active Scanning Responses . | . . . . . . Cargo Convoy Interrupts . | . . . . . . Stealth | -11 -10 -10 -10 -9 -8 --------- Run | Jun Mat Min Exi Min Mat Distress Signals 5 | . 1 . . . 4 Communications Jammed . | . . . . . . Distress Signals . | . . . . . . Times Spotted 76 | . 14 25 . . 37 Peak Tracking Total 17 | . 3 17 . . 6 Tactical Retreats 7 | . 1 . . . 6 Traps | -11 -10 -10 -10 -9 -8 ------- Run | Jun Mat Min Exi Min Mat Traps Triggered 1 | . . . . . 1 Indirectly . | . . . . . . Trap Hack Attempts . | . . . . . . Triggered . | . . . . . . Disarmed . | . . . . . . Reprogrammed . | . . . . . . Reused 5 | . . . . . 5 Traps Reconfigurated 7 | . . . . . 7 Traps Extracted . | . . . . . . Installed . | . . . . . . Triggered 5 | . . . . . 5 Machines | -11 -10 -10 -10 -9 -8 ---------- Run | Jun Mat Min Exi Min Mat Machines Disabled 3 | . 3 . . . . Max in Single Turn 2 | . 2 . . . . Machines Repaired . | . . . . . . Machines Sabotaged . | . . . . . . Overloaded Fab Kills . | . . . . . . Hacking | -11 -10 -10 -10 -9 -8 --------- Run | Jun Mat Min Exi Min Mat Machines Accessed 11 | . 4 . 1 . 6 Terminals 8 | . 3 . . . 5 Fabricators . | . . . . . . Repair Stations . | . . . . . . Recycling Units 1 | . 1 . . . . Scanalyzers 1 | . . . . . 1 Garrison Access . | . . . . . . Total Hacks 41 | . 13 . 1 . 27 Successful 28 | . 10 . 1 . 17 Failed 13 | . 3 . . . 10 Catastrophic 1 | . . . . . 1 Database Lockouts . | . . . . . . Manual 24 | . 8 . 1 . 15 Terminals 32 | . 9 . . . 23 Fabricators . | . . . . . . Repair Stations . | . . . . . . Recycling Units 4 | . 4 . . . . Scanalyzers 4 | . . . . . 4 Garrison Access . | . . . . . . Terminal Hacks 14 | . 4 . 1 . 9 Prototype ID Bank 2 | . . . . . 2 Branch Access Points 2 | . 1 . . . 1 Emergency Access Points 1 | . . . . . 1 Terminal Index 2 | . 1 . . . 1 Recycling Unit Index 1 | . . . . . 1 Locate Traps 1 | . 1 . . . . Dispatch Records 1 | . . . . . 1 Transport Status 1 | . . . . . 1 Zone Layout 2 | . 1 . . . 1 EX-Prototype ID Bank 1 | . . . 1 . . Fabricator Hacks . | . . . . . . Repair Station Hacks . | . . . . . . Recycling Unit Hacks . | . . . . . . Scanalyzer 4 | . . . . . 4 Insert Component 2 | . . . . . 2 Analyze 2 | . . . . . 2 Garrison Access Hacks . | . . . . . . Unauthorized Hacks 10 | . 6 . . . 4 Terminals 6 | . 2 . . . 4 Assimilate 2 | . . . . . 2 Botnet 3 | . 2 . . . 1 Disrupt 1 | . . . . . 1 Fabricators . | . . . . . . Repair Stations . | . . . . . . Recycling Units 4 | . 4 . . . . Monitor 1 | . 1 . . . . Reject 1 | . 1 . . . . Recyclers 1 | . 1 . . . . Mask 1 | . 1 . . . . Scanalyzers . | . . . . . . Garrison Access . | . . . . . . Data Cores Recovered . | . . . . . . Used . | . . . . . . Hacking Detections 9 | . 3 . . . 6 Full Trace Events 1 | . 1 . . . . Feedback Events . | . . . . . . Feedback Blocked . | . . . . . . Robot Schematics Acquired . | . . . . . . Robots Built . | . . . . . . Authchips . | . . . . . . Time . | . . . . . . Total Robot Build Rating . | . . . . . . Part Schematics Acquired 2 | . . . . . 2 Parts Built . | . . . . . . Authchips . | . . . . . . Time . | . . . . . . Total Part Build Rating . | . . . . . . Parts Repaired . | . . . . . . Time . | . . . . . . Parts Recycled . | . . . . . . Recycled Matter . | . . . . . . Retrieved Matter . | . . . . . . Retrieved Components . | . . . . . . Parts Scanalyzed 2 | . . . . . 2 Part Schematics Acquired 2 | . . . . . 2 Parts Damaged 1 | . . . . . 1 Bothacking | -11 -10 -10 -10 -9 -8 ------------ Run | Jun Mat Min Exi Min Mat Used RIF Installer . | . . . . . . Robots Hacked . | . . . . . . Non-combat . | . . . . . . Combat . | . . . . . . Robot Hacks Applied . | . . . . . . Relay Couplers Released . | . . . . . . Fabnet Peak Effective % . | . . . . . . Robots Rewired . | . . . . . . Allies Hacked . | . . . . . . Hacks Repelled . | . . . . . . Allies | -11 -10 -10 -10 -9 -8 -------- Run | Jun Mat Min Exi Min Mat Total Allies 2 | . . . . . 2 Largest Group 2 | . . . . . 2 Highest-Rated Group 36 | . . . . . 36 Highest-Rated Ally 26 | . . . . . 26 Total Orders . | . . . . . . Ally Attacks . | . . . . . . Total Damage . | . . . . . . Kills . | . . . . . . Allies Corrupted . | . . . . . . Allies Melted . | . . . . . . Intel | -11 -10 -10 -10 -9 -8 ------- Run | Jun Mat Min Exi Min Mat Robot Analysis Total . | . . . . . . Derelict Logs Recovered 2 | . . 1 . 1 . Drone Launches . | . . . . . . Drone Recoveries . | . . . . . . Exploration | -11 -10 -10 -10 -9 -8 ------------- Run | Jun Mat Min Exi Min Mat Turns Passed 3061 | 88 650 581 226 107 1409 Spaces Moved 1893 | 55 372 430 222 81 733 Core 3 | 3 . . . . . Treads 91 | . . . . . 91 Legs 2 | . . . . . 2 Wheels 1797 | 52 372 430 222 81 640 Hover . | . . . . . . Flight . | . . . . . . Fastest Speed 50 | 50 100 115 100 100 100 Average Speed 111 | 97 114 115 100 100 114 Slowest Speed 190 | 100 115 115 100 100 190 Overloaded Moves . | . . . . . . Propulsion Burnouts . | . . . . . . Robots Hopped . | . . . . . . Cave-ins Triggered . | . . . . . . Exploration Rate (%) 47 | 4 65 82 62 31 43 Regions Visited 5 Branch Regions 3 Pre-discovered Areas . | . . . . . . Known Exits Taken 2 | . 1 . 1 . . Unknown Exits Taken 3 | 1 . 1 . 1 . Scrap Searched 3 | . . 1 . 2 . Spaces Dug 9 | . 9 . . . . Terrain Destroyed 102 | . 61 34 . . 7 Melee . | . . . . . . Projectile . | . . . . . . AOE 102 | . 61 34 . . 7 Terrain Rammed . | . . . . . . Walls Destroyed . | . . . . . . Machines Disabled . | . . . . . . Actions | -11 -10 -10 -10 -9 -8 --------- Run | Jun Mat Min Exi Min Mat Total 2605 | 79 535 480 226 105 1180 Wait 443 | . 116 14 . 21 292 Move 1888 | 54 371 429 221 80 733 Hop . | . . . . . . Pick Up 40 | 13 7 3 1 1 15 Fast Attach 8 | . 1 . . 1 6 Attach 24 | 7 1 3 1 . 12 Detach 2 | . . . . . 2 Swap 18 | . 3 3 1 . 11 Drop 20 | . 3 . 2 1 14 Fire 159 | 5 32 28 . 1 93 Melee . | . . . . . . Ram 3 | . 1 . . . 2 Kick . | . . . . . . Crush . | . . . . . . Escape Stasis . | . . . . . . Rewire . | . . . . . . Trap . | . . . . . . Miscellaneous . | . . . . . . Route ------- -11/Junkyard -10/Materials (discovered 4 exits: [*Mat x3] / *Min) -10/Mines (discovered 2 exits: [*Mat] / *Exi) -10/Exiles (discovered 2 exits: *Min x2) -9/Mines -8/Materials (discovered 1 exit: [*Fac]) History --------- Turn | Location | Event 11 | -11/Junkyard | Discovered new exit (range 16) 89 | -11/Junkyard | Entered Materials 227 | -10/Materials | Discovered new exit (range 14) 310 | -10/Materials | Build established: Mutant 361 | -10/Materials | Discovered new exit (range 19) 601 | -10/Materials | Discovered new exit (range 3) 631 | -10/Materials | Identified exit to Mines 739 | -10/Materials | Entered Mines 740 | -10/Mines | Assembled infested the area 745 | -10/Mines | Assisted by a Guerilla fighting off Assembled 775 | -10/Mines | Destroyed 17 combat bots 837 | -10/Mines | Core integrity fell below 50% 877 | -10/Mines | Lost 3 parts (1n2w) 1099 | -10/Mines | Received a Rocket Launcher from a helpful Derelict 1217 | -10/Mines | Discovered new exit (range 10) 1316 | -10/Mines | Deemed a non-threat by the Exiles lab entrance 1316 | -10/Mines | Discovered new exit (range 5) 1320 | -10/Mines | Entered Exiles 1321 | -10/Exiles | Identified exit to Mines 1347 | -10/Exiles | Met 8R-AWN 1364 | -10/Exiles | Met EX-HEX 1397 | -10/Exiles | Met EX-BIN 1411 | -10/Exiles | Aligned with FarCom system 1412 | -10/Exiles | Given EX-Vault access code 1435 | -10/Exiles | Opened EX-Vault 1443 | -10/Exiles | Found Trap Reconfigurator 1467 | -10/Exiles | Warned to stay clear of 0b10 Research branches 1492 | -10/Exiles | Met EX-DEC 1546 | -10/Exiles | Left Exiles lab with Trap Reconfigurator 1546 | -10/Exiles | Entered Mines 1599 | -9/Mines | Met a Derelict bent on vengeance 1613 | -9/Mines | Learned Materials stockpile data 1635 | -9/Mines | Discovered new exit (range 9) 1653 | -9/Mines | Entered Materials 1653 | -8/Materials | Evolved 4 slots: Propulsion x1, Utility x3 2279 | -8/Materials | Discovered new exit (range 13) 3062 | -8/Materials | Self-destructed Last Messages --------------- 02963_ W-25 Informer destroyed. 02994_ Connecting with Terminal... >>Trojan(Disrupt) Trojan loaded successfully. Testing... Disruption routine running. >>Access(Branch) No branch access points found. >>Layout(Zone) Retrieving Zone 4E layout... Downloaded map data. 03012_ Critical hit (Burn: +37). 03020_ Y-45 Defender suffers critical hit (Destroy). 03020_ Y-45 Defender destroyed. 03025_ Acquired 52 matter. 03035_ B-36 Bruiser destroyed. 03039_ G-47 Trooper destroyed. 03052_ Acquired 56 matter. 03055_ Acquired 50 matter. 03057_ Acquired 52 matter. Map ----- +----------------------------------------------------+ | ????????????????????????????????????????? | | ????????????????????????????????????????? | | ????????????????????????????????????????? | | ????????????????????????????????????????? | | ????????????????????????????????????????? | | ????????????????????????????????????????? | | ????????????????????????????????????????? | | ????????????????????????????????????????? | | ????????????????????????????????????????? | | ????????????????????????????????????????? | | ?# # # """ #??# """??????????????? | | ?# / + #??# """??????????????? | | ?# # #####Y##??# """??????????????? | | ####?#### ##??###???# ??????????????? | | # # #????????# """??????######??? | | # """ + #????????# """????# ! #??? | | # """ # Y #????????# """????#""" #??? | | # """ # #????????# ????#""" #??? | | # ## ##??############+###""" #??? | | # """ ## #???# # #""" #??? | | # """ ## #???# """ # ! #""" #??? | | # """ ## #???# """ + ! ! + #??? | | # ## ##??# """ # [[ #""" #??? | | # """ # #??#=* # #""" #??? | | # "R + ####==!""" ## ##""" #??? | | # """ # T ==!/@!=""" !## ^ ##""" #??? | | # # ####!! """ ## ##""" #??? | | ######## #??# ## !## #??? | | ?????# #??########### !%#??######??? | | ?????#! !#????????????# !#??????????? | | ?????##!!!!##????????????# #??????????? | | ?????########????????????# #??????????? | | ?????????????????????????# # ?? ??????? | | ?????????????????????????# # ??????? | | ?????????????????????????# # ??????? | | ???????????????###???????# #!// ??????? | | ?????????????? ???????# #!// ????? | | ?????????????? ??#??# #// #???? | | ????????????# """ """ #??# # #???? | | ????????????# """ """ #??# + #???? | | ????????????# """ """ #??# # """ #???? | | ????????????# """ """ #??# #[ """ ##### | | ????????????# """ """ #??# # """ # //# | | ????????????# #??# # ?# //# | | ????????????######+####### ###+#### !!# | | ??????????????# !!# | | ??????????????# !!# | | ??????????????# !!# | | ?????????????#####+############## ##### | | ?????????????# #????????# #???? | +----------------------------------------------------+ Best States ------------- Heat Dissipation 31 Energy Generation 14 Energy Capacity 250 Matter Stores 300 Matter Capacity 300 Sight Range 20 Robot Scan Range 15 Terrain Scan Density 10 ECM Strength 1 Additional Mass Support 6 Evasion (%) 40 Recoil Reduction 3 Defensive Hacking 10 Item Schematics ----------------- Imp. Datajack | -8/Materials | Scanalyzed Enh. Autogun | -8/Materials | Scanalyzed Robot Schematics ------------------ None Fabricated ------------ Nothing Alien Tech Used ----------------- None Achievements -------------- None Challenges ------------ None Game ------ Seed DeepHardlightDatajack Manual? 0 Play Time 00:32:28 Cumulative 41.7 hours Start 2023.03.10 @ 10:30:44 End 2023.05.04 @ 10:34:11 Sessions 3 Manual Loads 0 Difficulty Rogue Special Mode None Game No. 72 Rogue 72 Adventurer 0 Explorer 0 Win Type - Total 0 Types 0/0/0/0/0/0/0/0/0 Lore% 18 Gallery% 24 Achievement% 27 Wizard Run 0 Options --------- ASCII 0 Keyboard 0 Movement Mouse Keybinds 0 Fullscreen 2 Font 18/TerminusBold Map View 76x50 Tactical HUD 1 Map Filters NONE Filters NONE Steam 1 RUN: 97834c68-8b0f-4352-94a1-fa2bf6c39370